Workbook

Sheet 본부
A1: 국민권익위원회 본부 상품권 구매 및 사용 내역 (2024년 7월 ~ 2024년 12월)
N2: (단위 : 장, 원)
A3: 부서명 | B3: 종류 | C3: 구매내역 | J3: 사용내역 | N3: 비고
C4: 구매일자 | D4: 구매처 | E4: 구매목적 | F4: 구매수량 | G4: 총구매액 (액면가, A) | H4: 총구매액 (구매가, B) | I4: 할인율 [(A-B)/A] | J4: 사용기간 | K4: 사용목적 | L4: 사용수량 | M4: 잔여수량
A5: 공공재정환수관리과 | B5: 카드상품권(실물카드) | C5: 2024.8.29. | D5: 스타벅스 코리아 | E5: 공공재정환수제도 교육청 자체강사 양성 워크숍 참석자 경품 지급 | F5: 9 | G5: 450000 | H5: 450000 | I5: 0 | J5: 2024.8.29. | K5: 공공재정환수제도 교육청 자체강사 양성 워크숍 참석자 경품 지급 | L5: 9 | M5: 0
F6: 8 | G6: 240000 | H6: 240000 | I6: 0 | L6: 8
A7: 운영지원과 | B7: 온누리상품권 | C7: 2024-09-04 | D7: 농협은행 | E7: 설명절 맞이 정부청사 내 현장근로자 격려 | F7: 49 | G7: 1470000 | H7: 1470000 | I7: 0 | J7: 2024-09-04 | K7: 설명절 맞이 정부청사 내 현장근로자(미화원, 청원경찰) 격려 | L7: 49 | M7: 0
B8: 문화상품권 | C8: 2024-07-01 | D8: 해피머니아이엔씨 | E8: 직원생일축하 | F8: 215 | G8: 2150000 | H8: 2042500 | I8: 0.05 | J8: ~2024-07-31 | K8: 직원생일축하 | L8: 215 | M8: -
B9: 온누리상품권 | C9: 2024-08-02 | D9: 농협은행 | F9: 285 | G9: 2850000 | H9: 2850000 | I9: 0 | J9: ~2024-08-31 | L9: 285 | M9: -
C10: 2024-09-10 | F10: 235 | G10: 2350000 | H10: 2350000 | I10: 0 | J10: ~2024-09-30 | L10: 235 | M10: -
C11: 2024-10-10 | F11: 195 | G11: 1950000 | H11: 1950000 | I11: 0 | J11: ~2024-10-31 | L11: 195 | M11: -
C12: 2024-11-05 | F12: 285 | G12: 2850000 | H12: 2850000 | I12: 0 | J12: ~2024-11~30 | L12: 285 | M12: -
C13: 2024-11-28 | F13: 285 | G13: 2850000 | H13: 2850000 | I13: 0 | J13: ~2024-12~31 | L13: 285
C14: 2024-12-18 | F14: 30 | G14: 300000 | H14: 300000 | I14: 0 | J14: ~2024-12~31 | L14: 30 | M14: -
A15: 국민신문고과 | B15: 모바일문화상품권 | C15: 2024-07-01 | D15: 엠투넷 | E15: 국민생각함 24년 2분기 우수안건 선정 설문조사 결과에 따른 경품 지급 | F15: 32 | G15: 210000 | H15: 205800 | I15: =(G15-H15)/G15 -> 0.02 | J15: 2024-07-01 | K15: 국민생각함 참여 활성화 | L15: 32 | M15: 0
B16: 모바일문화상품권 | C16: 2024-07-16 | D16: 엠투넷 | E16: 지방의회 국외출장 관련 국민생각함 의견수렴 결과에 따른 경품 지급 | F16: 30 | G16: 150000 | H16: 147000 | I16: =(G16-H16)/G16 -> 0.02 | J16: 2024-07-16 | K16: 국민생각함 참여 활성화 | L16: 30 | M16: 0
B17: 모바일온누리상품권 | C17: 2024-09-09 | D17: ㈜비즈플레이 | E17: 고속열차 다자녀 할인 관련 국민생각함 의견수렴 결과에 따른 경품 지급 | F17: 30 | G17: 150000 | H17: 127500 | I17: =(G17-H17)/G17 -> 0.15 | J17: 2024-09-09 | K17: 국민생각함 참여 활성화 | L17: 30 | M17: 0
B18: 모바일온누리상품권 | C18: 2024-09-26 | D18: ㈜비즈플레이 | E18: 회전교차료 통행 방법 관련 국민생각함 의견수렴 결과에 따른 경품 지급 | F18: 30 | G18: 150000 | H18: 135000 | I18: =(G18-H18)/G18 -> 0.1 | J18: 2024-09-26 | K18: 국민생각함 참여 활성화 | L18: 30 | M18: 0
B19: 모바일온누리상품권 | C19: 2024-10-08 | D19: ㈜비즈플레이 | E19: '24년 국민생각함 정책 아이디어 공모전 선호도 조사에 따른 경품 지급 | F19: 20 | G19: 100000 | H19: 90000 | I19: =(G19-H19)/G19 -> 0.1 | J19: 2024-10-08 | K19: 국민생각함 참여 활성화 | L19: 20 | M19: 0
B20: 모바일온누리상품권 | C20: 2024-10-17 | D20: ㈜비즈플레이 | E20: 국민생각함 24년 3분기 우수안건 선정 설문조사 결과에 따른 경품 지급 | F20: 33 | G20: 240000 | H20: 216000 | I20: =(G20-H20)/G20 -> 0.1 | J20: 2024-10-17 | K20: 국민생각함 참여 활성화 | L20: 33 | M20: 0
B21: 모바일온누리상품권 | C21: 2024-11-12 | D21: ㈜비즈플레이 | E21: 난임 지원 관련 국민생각함 의견 수렴에 따른 경품 지급 | F21: 30 | G21: 150000 | H21: 135000 | I21: =(G21-H21)/G21 -> 0.1 | J21: 2024-11-12 | K21: 국민생각함 참여 활성화 | L21: 30 | M21: 0
B22: 지류온누리상품권 | C22: 2024-11-26 | D22: 농협은행(법제처동) | E22: 국민생각함 활용 우수자 시상식 부상 | F22: 220 | G22: 2200000 | H22: 2090000 | I22: =(G22-H22)/G22 -> 0.05 | J22: 2024-11-29 | K22: 국민생각함 참여 활성화 | L22: 220 | M22: -
B23: 모바일온누리상품권 | C23: 2024-11-28 | D23: ㈜비즈플레이 | E23: 터널 운행 안전성 확보 관련 국민생각함 의견수렴 결과에 따른 경품 지급 | F23: 30 | G23: 150000 | H23: 135000 | I23: =(G23-H23)/G23 -> 0.1 | J23: 2024-11-28 | K23: 국민생각함 참여 활성화 | L23: 30 | M23: 0
B24: 모바일온누리상품권 | C24: 2024-11-28 | D24: ㈜비즈플레이 | E24: 버스정류장 시설개선 관련 국민생각함 의견수렴 결과에 따른 경품 지급 | F24: 80 | G24: 400000 | H24: 360000 | I24: =(G24-H24)/G24 -> 0.1 | J24: 2024-11-28 | K24: 국민생각함 참여 활성화 | L24: 80 | M24: 0
B25: 모바일온누리상품권 | C25: 2024-11-28 | D25: ㈜비즈플레이 | E25: 국민생각함 24년 3분기 우수안건 선정 설문조사 결과에 따른 경품 지급 | F25: 105 | G25: 650000 | H25: 585000 | I25: =(G25-H25)/G25 -> 0.1 | J25: 2024-11-28 | K25: 국민생각함 참여 활성화 | L25: 105 | M25: 0
B26: 모바일온누리상품권 | C26: 2024-11-28 | D26: ㈜비즈플레이 | E26: 2025 제도개선 역점과제 관련 국민생각함 의견수렴 결과에 따른 경품 지급 | F26: 30 | G26: 150000 | H26: 135000 | I26: =(G26-H26)/G26 -> 0.1 | J26: ('25년 지급 예정)
B27: 모바일온누리상품권 | C27: 2024-11-28 | D27: ㈜비즈플레이 | E27: 국민생각함 대국민 의견수렴 결과에 따른 경품 지급 | F27: 60 | G27: 300000 | H27: 270000 | I27: =(G27-H27)/G27 -> 0.1 | J27: ('25년 지급 예정)
A28: 홍보담당관 | B28: 모바일상품권 | C28: 2024-08-21 | D28: gs엠비즈 | E28: 24년 월별 우수활동 청백리포터 포상 지급 | F28: 9 | G28: 427500 | H28: 450000 | I28: 0.05 | J28: 2024-08-21 | K28: 24년 월별 우수활동 청백리포터 포상 | L28: 9
B29: 모바일상품권 | C29: 2024-12-16 | D29: gs엠비즈 | E29: 24년 월별 우수활동 청백리포터 포상 지급 | F29: 12 | G29: 600000 | H29: 570000 | I29: 0.05 | J29: 2024-12-16 | K29: 24년 월별 우수활동 청백리포터 포상 | L29: 12
A30: 민원정보분석과 | B30: 모바일상품권 | C30: 2024-12-16 | D30: ㈜모루컴퍼니 | E30: 한눈에 보는 민원빅데이터 공공데이터 개방 빈칸퀴즈 이벤트 경품 지급 | F30: 300 | G30: 1500000 | H30: 1500000 | I30: 0 | J30: 2024-12-16 | K30: 공공데이터 및 한눈에 보는 민원빅데이터 누리집 이용 활성화 제고 | L30: 300 | M30: 0
A31: 복지노동민원과 | B31: 카드상품권(실물카드) | C31: 2024.8.30. | D31: 스타벅스 코리아 | E31: 2024년 2차 악성민원 대응 워크숍 참석자 경품 지급 | F31: 10 | G31: 100000 | H31: 100000 | I31: 0 | J31: 2024.9.4. | K31: 2024년 악성민원 대응 워크숍 참석자 질문 참여 경품 | L31: 10 | M31: 0
A32: 심사기획과 | B32: 모바일금액상품권 | C32: 2024-12-19 | D32: ㈜엠투넷 | E32: 청렴포털 이용만족도 설문조사 경품 | F32: 160 | G32: 800000 | H32: 784000 | I32: =(G32-H32)/G32 -> 0.02 | J32: 2024-12-20 | K32: 청렴포털 이용만족도 설문조사 관련 경품 | L32: 160 | M32: 0
A33: 경제제도개선과 | B33: 모바일상품권 | C33: 2024-12-11 | D33: 엠투넷 | E33: ‘터널 운행 안전성 확보 관련 국민 의견수렴 설문조사' 경품지급 | F33: 100 | G33: 5000 | H33: 4900 | I33: 0.02 | J33: 2024-12-13 | K33: ‘터널 운행 안전성 확보 관련 국민 의견수렴 설문조사' 경품지급 | L33: 100 | M33: -
A34: 행정심판통합추진단 통합지원팀 | B34: 모바일상품권 | C34: 2024-12-24 | D34: 엠투넷 | E34: 국민생각함 국민 의견수렴(원스톱행정심판시스템 디자인 선호도 조사) 결과에 따른 경품지급 | F34: 200 | G34: 1000000 | H34: 980000 | I34: 0.02 | J34: 2024-12-24 | K34: 원스톱 행정심판 시스템 구축 관련 홈페이지(인터넷 및 모바일) 디자인 선호도 조사 | L34: 200 | M34: 0
A35: 부패심사과 | B35: 모바일상품권 | C35: 2024-07-31 | D35: 엠투넷 | E35: 국민생각함 지방의회 의원 국외출장 관련 설문조사 경품 지급 | F35: 100 | G35: 500000 | H35: 490000 | I35: =(G35-H35)/G35 -> 0.02 | J35: 2024-07-31 | K35: 지방의회 의원 국외출장 관련 설문조사 경품 지급 | L35: 100 | M35: 0
A36: 국방보훈민원과 | B36: 모바일 편의점(GS25) 상품권 | C36: 2024.12.17 | D36: ㈜ 엠투넷 | E36: 부서 기획조사 추진 관련 국민생각함 설문 이벤트 참가 경품 | F36: 100 | G36: 500000 | H36: 490000 | I36: 0.02 | J36: 2024.12.20 | K36: 부서 기획조사 추진 관련 국민생각함 설문 이벤트 참가 경품 배부 | L36: 100 | M36: 0

Sheet 청렴연수원
A1: 청렴연수원 상품권 구매 및 사용 내역 (2024년 7월 ~ 2024년 12월)
N2: (단위 : 장, 원)
A3: 부서명 | B3: 종류 | C3: 구매내역 | J3: 사용내역 | N3: 비고
C4: 구매일자 | D4: 구매처 | E4: 구매목적 | F4: 구매수량 | G4: 총구매액 (액면가, A) | H4: 총구매액 (구매가, B) | I4: 할인율 [(A-B)/A] | J4: 사용기간 | K4: 사용목적 | L4: 사용수량 | M4: 잔여수량
A5: 교육지원과 | B5: 해피머니상품권 | J5: 24. 7. ~ 24. 12. | K5: 직원 생일축하 | L5: 85 | M5: 120 | N5: 잔여분 환불 요청 완료
J6: 24. 7. | K6: 청렴윤리경영 교육과정(원내, 방문) '청렴골든벨' 우수 참여자 상품 | L6: 20 | M6: 133
B7: 문화상품권 | C7: 2024-11-25 | D7: 청주교육대학교 구내서점 | E7: 수능이후 고3대상 청렴교육 '청렴골든벨' 프로그램 운영 | F7: 216 | G7: 1080000 | H7: 1080000 | I7: 0 | J7: ~2024-12-12 | K7: 수능이후 고3대상 청렴교육 '청렴골든벨' 프로그램 운영 | L7: 216 | M7: 0

Sheet 정부합동민원센터
A1: 정부합동민원센터 상품권 구매 및 사용 내역 (2024년 7월 ~ 2024년 12월)
N2: (단위 : 장, 원)
A3: 부서명 | B3: 종류 | C3: 구매내역 | J3: 사용내역 | N3: 비고
C4: 구매일자 | D4: 구매처 | E4: 구매목적 | F4: 구매수량 | G4: 총구매액 (액면가, A) | H4: 총구매액 (구매가, B) | I4: 할인율 [(A-B)/A] | J4: 사용기간 | K4: 사용목적 | L4: 사용수량 | M4: 잔여수량
A5: 국민콜110 | B5: 해피머니상품권 | C5: 2024-07-09 | D5: ㈜해피머니아이엔씨 | E5: 6월 직원 생일 축하 | F5: 60 | G5: =F5*10000 -> 600000 | H5: =G5*0.95 -> 570000 | I5: =(G5-H5)/G5*1 -> 0.05 | J5: 2024-07-09 | K5: 직원 생일 축하 | L5: 65 | M5: - | N5: 전월 이월분(5장) 포함
B6: 온누리상품권 | C6: 2024-08-06 | D6: 온누리상품권 | E6: 7월 직원 생일 축하 | F6: 100 | G6: =F6*10000 -> 1000000 | H6: =G6 -> 1000000 | I6: =(G6-H6)/G6*1 -> 0 | J6: 2024-08-08 | L6: =F6 -> 100 | M6: -
C7: 2024-09-02 | D7: 온누리상품권 | E7: 8월 직원 생일 축하 | F7: 75 | G7: =F7*10000 -> 750000 | H7: =G7 -> 750000 | I7: =(G7-H7)/G7*1 -> 0 | J7: 2024-09-05 | L7: =F7 -> 75 | M7: -
C8: 2024-10-11 | D8: 온누리상품권 | E8: 9월 직원 생일 축하 | F8: 120 | G8: =F8*10000 -> 1200000 | H8: =G8 -> 1200000 | I8: =(G8-H8)/G8*1 -> 0 | J8: 2024-10-11 | L8: =F8 -> 120 | M8: -
C9: 2024-11-06 | D9: 온누리상품권 | E9: 10월 직원 생일 축하 | F9: 55 | G9: =F9*10000 -> 550000 | H9: =G9 -> 550000 | I9: =(G9-H9)/G9*1 -> 0 | J9: 2024-11-08 | L9: =F9 -> 55 | M9: -
C10: 2024-12-04 | D10: 온누리상품권 | E10: 11월 직원 생일 축하 | F10: 90 | G10: =F10*10000 -> 900000 | H10: =G10 -> 900000 | I10: =(G10-H10)/G10*1 -> 0 | J10: 2024-12-09 | L10: =F10 -> 90 | M10: -
C11: 2024-12-04 | D11: 온누리상품권 | E11: 12월 직원 생일 축하 | F11: 60 | G11: =F11*10000 -> 600000 | H11: =G11 -> 600000 | I11: =(G11-H11)/G11*1 -> 0 | J11: 2024-12-30 | L11: =F11 -> 60 | M11: - | N11: 24년 예산마감으로 12월4 일 구입 후 12월 30일에 상품권 지급
